[Event "Baku Open 2024"]
[Site "Baku"]
[Date "2024.07.04"]
[Round "6.19"]
[White "Hamidov, Allahverdi"]
[Black "Stribuk, Artiom"]
[Result "0-1"]
[ECO "D87"]
[WhiteElo "2307"]
[BlackElo "2422"]
[Annotator "TA"]
[PlyCount "162"]
[EventDate "2024.06.29"]
[EventType "swiss"]
[EventCountry "AZE"]
[SourceTitle "playchess.com"]
[Source "ChessBase"]
[SourceQuality "1"]
[TimeControl "5400+30"]

{[%evp 23,162,18,37,32,21,15,27,0,59,0,-6,0,0,0,0,-16,-31,-81,0,-91,-76,-182,-190,-156,-162,-176,-141,-313,-320,-323,-320,-301,-270,-338,-318,-343,-357,-351,-305,-304,-366,-447,-447,-447,-447,-2910,-2494,-29988,-29989,-29989,-29990,-29990,-29987,-29986,-689,-668,0,0,0,0,0,0,0,0,0,-20,-20,-20,-20,-20,0,-14,-13,-13,-13,-13,-13,-13,0,-13,-14,-14,-14,-14,0,-12833,-12836,-12842,-12843,-12846,-29938,-12849,-12843,-12841,-29939,-12850,-12848,-12850,-29938,-29937,-29944,-29951,-29952,-29952,-29950,-29953,-29950,-29951,-29952,-29956,-29957,-29960,-29959,-29957,-29959,-29962,-29962,-29964,-29965,-29965,-29966,-29967,-29967,-29968,-1075,-29965,-29970,-29971,-29972,-29972,-29972,-29972,-29973,-29972,-29973,-29983,-29984,-29985,-29986,-29986,-29987]} 1. d4 {[%emt 0:00:24]} Nf6 {[%emt 0:00:07]} 2. c4 {[%emt 0:00:05]} g6 {[%emt 0:00:13]} 3. Nc3 {[%emt 0:00:35]} d5 {[%emt 0:00:10]} 4. cxd5 {[%emt 0:00:34]} Nxd5 {[%emt 0:00:06]} 5. e4 {[%emt 0:00:05]} Nxc3 {[%emt 0:00:07]} 6. bxc3 {[%emt 0:00:02]} Bg7 {[%emt 0:00:07]} 7. Bc4 {[%emt 0:00:16]} c5 {[%emt 0:00:12]} 8. Ne2 {[%emt 0:00:05]} Nc6 {[%emt 0:00:18]} 9. Be3 {[%emt 0:00:05]} O-O {[%emt 0:00:12]} 10. O-O {[%emt 0:00:04]} Bg4 {[%emt 0:00:31]} 11. f3 {[%emt 0:00:21]} Bd7 {[%emt 0:00:04]} 12. Rb1 {[%emt 0:00:48]} Qc7 {[%emt 0:00:07]} 13. Qd2 {[%emt 0:00:38]} Rad8 {[%emt 0:10:31]} 14. Rfc1 {[%emt 0:01:07]} (14. dxc5 Ne5 15. Bb3 Bb5 $15) 14... Bc8 {[%emt 0:02:31]} 15. h4 {[%emt 0:05:40] White has an edge.} e5 {[%emt 0:08:41]} (15... Na5 $11 16. Bd3 f5) 16. d5 {[%emt 0:02:33]} (16. Bd5 $1 $14) 16... Na5 $11 {[%emt 0:01:32]} 17. Bd3 {[%emt 0:01:18]} c4 {[%emt 0:00:10]} 18. Bc2 {[%emt 0:00:30]} b6 $1 {[%emt 0:00:09]} 19. h5 {[%emt 0:05:12]} f5 {[%emt 0:17:50]} 20. hxg6 {[%emt 0:26:30] [#]} ({White should try} 20. f4 $15) 20... hxg6 {[%emt 0:00:14]} (20... f4 $1 $17 {[%cal Rf4e3]} 21. gxh7+ Kxh7) 21. exf5 {[%emt 0:00:13]} (21. Bg5 $11) 21... gxf5 $17 {[%emt 0:01:12]} 22. Rd1 {[%emt 0:04:27]} (22. f4 $17) 22... f4 $19 {[%emt 0:16:33]} 23. Bf2 {[%emt 0:00:14]} Nb7 {[%emt 0:00:21]} 24. a4 {[%emt 0:12:53]} Bf6 {[%emt 0:16:31]} 25. Qc1 $2 {[%emt 0:13:44]} (25. g3 $17) 25... Qg7 {[%emt 0:09:09] Hoping for ...Bh3.} 26. Kf1 {[%emt 0:00:10]} Nd6 {[%emt 0:01:30]} 27. a5 {[%emt 0:01:49]} b5 {[%emt 0:03:20]} (27... bxa5 28. Bc5 $19) 28. Qd2 {[%emt 0:01:02]} a6 {[%emt 0:01:16]} 29. Bb6 {[%emt 0:02:51]} Rde8 {[%emt 0:04:26] ...e4 would now be deadly.} 30. Bc5 {[%emt 0:00:37]} Be7 {[%emt 0:00:05]} 31. Bxd6 {[%emt 0:04:30]} Bxd6 {[%emt 0:00:02]} 32. Be4 {[%emt 0:00:01]} Kf7 {[%emt 0:00:48]} 33. g4 {[%emt 0:00:37]} fxg3 {[%emt 0:01:37] Strongly threatening ...g2+.} 34. Kg2 {[%emt 0:01:39] [#]} (34. Qe3 $142) 34... Bh3+ $1 {[%emt 0:02:18][%mdl 512]} 35. Kxh3 {[%emt 0:00:13]} (35. Kg1 Bc5+) 35... Rh8+ {[%emt 0:01:01]} 36. Kg2 {[%emt 0:00:05]} Rh2+ {[%emt 0:00:05]} 37. Kf1 {[%emt 0:00:49]} Bc5 {[%emt 0:02:31]} 38. Ng1 {[%emt 0:00:47]} g2+ {[%emt 0:00:13]} (38... Reh8 $142 39. f4 Rxd2 40. Rxd2 Qh6 (40... exf4 $2 41. Rc1 $19) 41. Re2 Qxf4+ (41... exf4 $2 42. Bf3 $19) 42. Ke1 Rh2 (42... Bxg1 43. d6 Rh2 44. Bd5+ Kf6 45. Rxh2 gxh2 46. d7 Qg3+ 47. Kd1 Qd3+ 48. Kc1 Qxd5 49. Kb2 Qxd7 50. Rc1 Qd3 51. Rb1 h1=Q 52. Rc1 Qh2+ 53. Ka1 Bc5 54. Rh1 Qxh1+ 55. Kb2 Qe2#) 43. Bg2 Bxg1 (43... Rxg2 44. Rxg2 Qe4+ 45. Kf1 Qxb1+ 46. Ke2 Qd3+ 47. Ke1 Bxg1 48. d6 Qe4+ 49. Kf1 Qf3+ 50. Ke1 Qxg2 51. d7 Be3 52. d8=N+ Kg6 53. Ne6 Qf2+ 54. Kd1 Qd2#) 44. d6 Rxg2 45. Rxg2 Bf2+ (45... Qe4+ 46. Kf1 Qxb1+ 47. Ke2 e4 48. Kd2 Qb2+ 49. Kd1 Bf2 50. Rxg3 Bxg3 51. d7 e3 52. d8=N+ Kf6 53. Nc6 e2#) 46. Kd1 Qf3+ 47. Kc1 Qxg2 48. Rb4 Qf1+ 49. Kb2 g2 (49... Qe2+ 50. Kb1 g2 51. Ka1 Be1 52. Rxc4 Bxc3+ 53. Rxc3 g1=Q+ 54. Rc1 Qxc1#) 50. Rxc4 bxc4 (50... g1=B 51. Rc7+ Kg6 52. d7 Qe2+ 53. Ka1 Qd1+ 54. Kb2 Be3 55. Rc6+ Kf5 56. d8=Q Qxd8 57. Rxa6 Qd1 58. Rd6 Bc1+ 59. Kb1 Bd2+ 60. Kb2 Qc1+ 61. Kb3 Qb1+ 62. Ka3 Bc5#) 51. Ka2 Qe2+ (51... g1=R $2 52. Ka3 Bc5+ 53. Kb2 Rg2#) 52. Ka3 Bc5+ 53. Ka4 Qd1#) 39. Ke2 {[%emt 0:00:27] [#] And now d6 would win.} Qg3 $2 {[%emt 0:00:34]} (39... Rh4 $1 $19 {[%cal Rh4e4] ( -> ...Rxe4+!)} 40. Rdc1 Qg3) 40. Qe1 $11 {[%emt 0:03:54]} Qf4 {[%emt 0:00:05]} 41. Qd2 {[%emt 0:00:40] Against Qe3+} Qh4 {[%emt 0:01:53] Some like it hot} 42. Qe1 {[%emt 0:00:52] Prevents Qf2+} Qf4 {[%emt 0:00:05]} 43. Qd2 {[%emt 0:00:20] Prevents Qe3+} Rd8 {[%emt 0:00:54]} 44. Qxf4+ {[%emt 0:02:11]} exf4 {[%emt 0:00:01]} 45. Kd2 {[%emt 0:00:00]} Kf6 {[%emt 0:00:33][%mdl 1024] Black has compensation.} 46. Kc2 {[%emt 0:00:37]} Rd6 {[%emt 0:01:02]} 47. Kb2 {[%emt 0:02:34]} Ke5 {[%emt 0:00:51]} 48. Ka2 {[%emt 0:01:47]} Rdh6 {[%emt 0:01:02]} 49. Rd2 {[%emt 0:02:49]} Be3 {[%emt 0:00:18]} 50. Re2 {[%emt 0:00:19]} Kd6 {[%emt 0:00:21]} 51. Rbb2 {[%emt 0:00:40]} Bxg1 {[%emt 0:00:06]} 52. Rxg2 {[%emt 0:00:06]} Rxg2 {[%emt 0:00:21]} 53. Rxg2 {[%emt 0:00:02][%mdl 4096] Endgame. KRB-KRB} Bc5 {[%emt 0:01:13]} 54. Rg6+ $2 {[%emt 0:00:37][%mdl 8192] Black keeps a firm grip on the game.} (54. Rg8 $11) 54... Rxg6 $19 {[%emt 0:00:01]} 55. Bxg6 {[%emt 0:00:01] KB-KB} Kc7 {[%emt 0:00:37]} ({Stronger than} 55... Kxd5 56. Be4+ Kd6 57. Bb7 $11) 56. Be4 {[%emt 0:02:38]} Bd6 {[%emt 0:00:05]} (56... Kb8 $19 57. Kb2 Be7) 57. Kb2 {[%emt 0:01:06]} Kb8 {[%emt 0:00:05]} 58. Kc2 {[%emt 0:00:56]} Bc7 {[%emt 0:00:05]} (58... Be7 $19 59. Bf5 Bd8) 59. Kb2 {[%emt 0:00:18]} Ka7 {[%emt 0:00:08]} 60. Kc2 {[%emt 0:00:21]} Bxa5 {[%emt 0:00:06]} 61. d6 {[%emt 0:00:08] Wards off Bc7} Bd8 {[%emt 0:00:08]} 62. d7 {[%emt 0:00:54]} Kb6 {[%emt 0:00:05]} 63. Bf5 {[%emt 0:00:17]} Kc6 {[%emt 0:00:19]} 64. Kd2 {[%emt 0:00:50]} Kd6 {[%emt 0:00:32]} 65. Kc2 {[%emt 0:00:14]} Bf6 {[%emt 0:02:16]} 66. Kd2 {[%emt 0:01:02]} a5 {[%emt 0:00:21]} (66... Bd8 67. Kc2 $19) 67. Bh3 {[%emt 0:00:47]} a4 {[%emt 0:02:08]} 68. Kc2 {[%emt 0:00:25]} a3 {[%emt 0:00:17]} 69. Kb1 {[%emt 0:00:53]} Kc7 {[%emt 0:00:43]} (69... Bxc3 $2 {is the wrong capture.} 70. d8=Q+ (70. d8=R+ Kc7 $18) 70... Kc6 71. Qd7+ Kc5 72. Qe7+ Kc6 73. Qxa3 $18) 70. Ka2 {[%emt 0:00:02]} Bxc3 {[%emt 0:00:12]} 71. Kxa3 {[%emt 0:00:06]} Bf6 {[%emt 0:00:48]} 72. Bf5 {[%emt 0:01:45]} Kb6 {[%emt 0:00:05]} 73. Kb4 {[%emt 0:00:29]} Be7+ {[%emt 0:00:05]} 74. Kc3 {[%emt 0:00:04]} Kc5 {[%emt 0:00:04] Black mates.} 75. Kd2 {[%emt 0:00:38]} b4 {[%emt 0:00:10]} 76. Be4 {[%emt 0:00:29]} b3 {[%emt 0:00:09]} 77. Bf5 {[%emt 0:00:35]} Bd8 {[%emt 0:00:15]} 78. Be6 {[%emt 0:00:23]} Kb4 {[%emt 0:01:07]} 79. Ke2 {[%emt 0:00:27]} Bb6 {[%emt 0:01:14]} 80. Bf5 {[%emt 0:00:31]} Ka3 {[%emt 0:00:21]} 81. Kd2 {[%emt 0:01:38]} Kb2 {[%emt 0:00:05] Weighted Error Value: White=0.50/Black=0.24 (precise) .  Loses game:     	White=2     	---        Mistake:       	White=5     	Black=2      Inaccurate:     	White=2     	---        OK:         	White=15    	Black=17     Best:        	White=1     	Black=3      Strong:       	---       	Black=1      Brilliant:      	---       	Black=1} 0-1

[Event "Baku Open 2024"]
[Site "Baku"]
[Date "2024.07.04"]
[Round "6.20"]
[White "Aradhya, Garg"]
[Black "Valiyev, Shahin"]
[Result "1/2-1/2"]
[ECO "D35"]
[WhiteElo "2418"]
[BlackElo "2244"]
[Annotator "TA"]
[PlyCount "73"]
[EventDate "2024.06.29"]
[EventType "swiss"]
[EventCountry "AZE"]
[SourceTitle "playchess.com"]
[Source "ChessBase"]
[SourceQuality "1"]
[TimeControl "5400+30"]

{[%evp 9,73,29,28,6,2,0,0,0,17,0,0,14,16,18,9,-12,-3,-34,0,0,0,-18,0,0,0,0,0,0,0,0,0,0,0,0,0,-2,0,0,0,0,0,0,0,0,0,0,0,0,0,0,0,0,0,0,0,0,0,0,0,0,0,0,0,0,0,0]} 1. d4 {[%emt 0:00:01]} d5 {[%emt 0:00:04]} 2. c4 {[%emt 0:00:05]} e6 {[%emt 0:00:04]} 3. Nc3 {[%emt 0:00:04]} Be7 {[%emt 0:00:04]} 4. Bf4 {[%emt 0:00:04]} Nf6 {[%emt 0:00:29]} 5. e3 {[%emt 0:00:05]} O-O {[%emt 0:00:21]} 6. a3 {[%emt 0:00:15]} b6 {[%emt 0:01:21]} 7. Nb5 {[%emt 0:00:16]} Na6 {[%emt 0:02:01]} 8. Nf3 {[%emt 0:00:29]} Bb7 {[%emt 0:02:17]} 9. Rc1 {[%emt 0:00:05]} c6 {[%emt 0:02:59]} 10. Nc3 {[%emt 0:00:06]} Nc7 {[%emt 1:25:50]} 11. Be5 {[%emt 0:09:44]} Rc8 {[%emt 0:00:00]} 12. cxd5 {[%emt 0:04:51]} Ncxd5 {[%emt 0:00:00]} 13. Nxd5 {[%emt 0:01:02]} cxd5 {[%emt 0:00:00]} (13... Qxd5 $5 14. Be2 c5 $15) 14. Bd3 {[%emt 0:00:26] The position is equal.} Ne4 {[%emt 0:00:00]} 15. O-O {[%emt 0:04:50]} Qd7 {[%emt 0:00:00]} 16. h3 {[%emt 0:05:33]} Rxc1 {[%emt 0:00:00]} 17. Qxc1 {[%emt 0:00:02]} Rc8 {[%emt 0:00:00]} 18. Qb1 {[%emt 0:01:20]} Qc6 {[%emt 0:00:00]} 19. Bf4 {[%emt 0:00:54]} f6 {[%emt 0:00:00]} 20. Rd1 {[%emt 0:01:20]} g6 {[%emt 0:00:00]} 21. Ne1 {[%emt 0:07:55]} Kg7 {[%emt 0:00:00]} 22. h4 {[%emt 0:02:25]} Bd6 {[%emt 0:00:00]} 23. Bxe4 {[%emt 0:11:03]} dxe4 {[%emt 0:00:00]} 24. d5 {[%emt 0:00:26]} exd5 {[%emt 0:00:00]} 25. Bxd6 {[%emt 0:00:05]} Qxd6 {[%emt 0:00:00]} 26. Qxe4 {[%emt 0:00:09]} dxe4 {[%emt 0:00:00]} 27. Rxd6 $11 {[%emt 0:00:02][%mdl 4096] Endgame. KRB-KRN} Rc7 {[%emt 0:00:00] Prevents Rd7+.} 28. Nc2 {[%emt 0:01:12]} Rxc2 {[%emt 0:00:00] KRB-KR} 29. Rd7+ {[%emt 0:00:05]} Kh6 {[%emt 0:00:00]} 30. Rxb7 {[%emt 0:00:03]} Rxb2 {[%emt 0:00:00]} 31. Rxa7 {[%emt 0:02:09] KR-KR} f5 {[%emt 0:00:00]} 32. g3 {[%emt 0:00:30]} Ra2 {[%emt 0:00:00]} 33. Kg2 {[%emt 0:00:14]} g5 {[%emt 0:00:00]} 34. Ra6 {[%emt 0:03:52]} Kh5 {[%emt 0:00:43]} 35. Rxb6 {[%emt 0:00:27]} gxh4 {[%emt 0:03:19]} 36. gxh4 {[%emt 0:01:01]} Kxh4 {[%emt 0:00:06]} 37. Rh6+ {[%emt 0:01:39] Not much happened in this game.   Weighted Error Value: White=0.03 (flawless) /Black=0.03 (flawless) .  Inaccurate:     	White=1     	Black=1      OK:         	White=17    	Black=15     Best:        	White=2     	---} 1/2-1/2

[Event "Baku Open 2024"]
[Site "Baku"]
[Date "2024.07.04"]
[Round "6.21"]
[White "Mamedov, Edgar"]
[Black "Amangeldy, Ernur"]
[Result "1-0"]
[ECO "D37"]
[WhiteElo "2410"]
[BlackElo "2223"]
[Annotator "RC"]
[PlyCount "47"]
[EventDate "2024.06.29"]
[EventType "swiss"]
[EventCountry "AZE"]
[SourceTitle "playchess.com"]
[Source "ChessBase"]
[SourceQuality "1"]
[TimeControl "5400+30"]

1. d4 {[%emt 0:00:02]} Nf6 {[%emt 1:31:00]} 2. c4 {[%emt 0:00:08]} e6 {[%emt 0:00:00]} 3. Nf3 {[%emt 0:00:13]} d5 {[%emt 0:00:00]} 4. Nc3 {[%emt 0:00:22]} Be7 {[%emt 0:00:00]} 5. Bf4 {[%emt 0:00:56]} O-O {[%emt 0:00:00]} 6. e3 {[%emt 0:00:15]} c5 {[%emt 0:00:00]} 7. dxc5 {[%emt 0:00:56]} Bxc5 {[%emt 0:00:00]} 8. a3 {[%emt 0:00:04]} Nc6 {[%emt 0:00:00]} 9. Qc2 {[%emt 0:00:19]} Qa5 {[%emt 0:00:00]} 10. Rd1 {[%emt 0:04:29]} Re8 {[%emt 0:00:00]} 11. Nd2 {[%emt 0:00:54]} e5 {[%emt 0:00:00]} 12. Bg5 {[%emt 0:00:28]} Nd4 {[%emt 0:00:00]} 13. Qb1 {[%emt 0:04:29]} Bg4 {[%emt 0:00:00]} 14. Bxf6 {[%emt 0:11:12]} Bxd1 {[%emt 0:00:00]} 15. Kxd1 {[%emt 0:11:17]} gxf6 {[%emt 0:00:00]} 16. exd4 {[%emt 0:03:52]} Bxd4 {[%emt 0:00:00]} 17. Nxd5 {[%emt 0:02:09]} Kg7 {[%emt 0:00:00]} 18. Qe4 {[%emt 0:12:14]} f5 {[%emt 0:00:00]} 19. Qxf5 {[%emt 0:00:39]} e4 {[%emt 0:00:00]} 20. Bd3 {[%emt 0:01:19]} Bxb2 {[%emt 0:00:00]} 21. Nxe4 {[%emt 0:14:19]} Qa4+ {[%emt 0:00:00]} 22. Kd2 {[%emt 0:01:09]} Bd4 {[%emt 0:00:00]} 23. Ng5 {[%emt 0:03:38]} Qa5+ {[%emt 0:00:00]} 24. Kd1 {[%emt 0:00:16]} 1-0

[Event "Baku Open 2024"]
[Site "Baku"]
[Date "2024.07.04"]
[Round "6.22"]
[White "Ahmadov, Fariz"]
[Black "Aleksandrov, Aleksej"]
[Result "0-1"]
[ECO "A12"]
[WhiteElo "2178"]
[BlackElo "2405"]
[Annotator "TA"]
[PlyCount "64"]
[EventDate "2024.06.29"]
[EventType "swiss"]
[EventCountry "AZE"]
[SourceTitle "playchess.com"]
[Source "ChessBase"]
[SourceQuality "1"]
[TimeControl "5400+30"]

{[%evp 17,64,-8,-2,0,0,-8,-12,-24,-22,-66,-30,-85,-59,-76,-65,-94,-71,-91,-86,-112,-94,-110,-99,-139,-109,-99,-111,-125,-133,-116,-116,-118,-71,-87,-51,-197,-198,-219,-106,-141,-101,-243,-245,-304,-272,-667,-640,-791,-708]} 1. Nf3 {[%emt 0:00:43]} Nf6 {[%emt 0:00:05]} 2. b3 {[%emt 0:01:05]} d5 {[%emt 0:01:00]} 3. g3 {[%emt 0:00:37]} Bf5 {[%emt 0:00:29]} 4. Bg2 {[%emt 0:00:12]} h6 {[%emt 0:00:08]} 5. O-O {[%emt 0:00:07]} e6 {[%emt 0:00:04]} 6. Bb2 {[%emt 0:01:01]} Be7 {[%emt 0:01:21]} 7. c4 {[%emt 0:00:21]} c6 {[%emt 0:01:26]} 8. d3 {[%emt 0:00:28]} O-O {[%emt 0:00:12]} 9. Nbd2 {[%emt 0:00:20]} Bh7 {[%emt 0:00:22]} 10. Ne5 {[%emt 0:01:58]} a5 {[%emt 0:00:28]} 11. e4 {[%emt 0:01:50] [#]} a4 $1 {[%emt 0:01:25]} 12. bxa4 {[%emt 0:00:54] The position is equal.} (12. exd5 a3) 12... dxe4 {[%emt 0:00:29]} 13. d4 {[%emt 0:02:08]} c5 {[%emt 0:01:06]} 14. d5 {[%emt 0:05:22]} exd5 $17 {[%emt 0:01:11]} 15. cxd5 {[%emt 0:01:38]} Qxd5 {[%emt 0:00:17]} 16. Nec4 {[%emt 0:06:30]} Rd8 {[%emt 0:12:03]} 17. Rb1 {[%emt 0:05:34]} Qe6 {[%emt 0:01:25][%cal Oe4e3] Against Nb6. ...e3! is the strong threat.} 18. Re1 {[%emt 0:01:47]} Nc6 {[%emt 0:00:13] Black is more active.} 19. Ba1 {[%emt 0:06:06]} Ra7 {[%emt 0:05:18]} 20. Rb6 {[%emt 0:08:07]} Qd7 {[%emt 0:05:14]} 21. Qb3 {[%emt 0:05:55][%cal Oa1f6]} Nd5 {[%emt 0:00:50]} 22. Rb5 {[%emt 0:03:25]} Bf6 $1 {[%emt 0:06:00]} 23. Bxf6 {[%emt 0:07:35]} Nxf6 {[%emt 0:00:02]} 24. Rxc5 {[%emt 0:00:10] [#]} Nd4 {[%emt 0:00:13] Inhibits Qb5.} (24... Qe7 $142 $1 {[%cal Re7c5]} 25. Qa3 Rxa4 26. Qxa4 Qxc5) 25. Qb6 {[%emt 0:12:12]} Ra6 {[%emt 0:06:50]} 26. Qb2 {[%emt 0:01:28] [#]} (26. Bh3 $15 Qe7 (26... Qxh3 27. Qxd8+) (26... Rxb6 27. Bxd7 Ra6 28. Bb5 $17) 27. Rc7) 26... b6 $1 $19 {[%emt 0:03:24]} (26... Rxa4 $2 27. Nb6 (27. Nxe4 $2 Bxe4 28. Bxe4 Nxe4 $19) 27... Qe8 28. Nxa4 Qxa4 29. Qxb7 $18 (29. Nxe4 $2 Bxe4 30. Rc3 Bxg2 $19)) (26... Qxa4 27. Qxb7 Ra7 (27... Qxa2 28. Rc8 $11) 28. Qb2 $15) 27. Re5 {[%emt 0:04:12]} (27. Nxb6 Qd6 28. Rb5 Nxb5 $19) 27... Qc7 {[%emt 0:02:35]} (27... Rxa4 28. Nxb6 Qc7 29. Nxa4 $11) (27... Qxa4 $19 {is more deadly.} 28. Ra1 Qc6) 28. h3 {[%emt 0:03:56]} Bf5 {[%emt 0:02:57]} 29. Rb5 {[%emt 0:08:29]} Rxa4 {[%emt 0:05:27] White must now prevent ...Be6.} 30. Nxb6 {[%emt 0:02:52]} Nxb5 {[%emt 0:00:09]} (30... Rxa2 31. Qxa2 Nxb5 32. Nbc4 $17) 31. Qxb5 {[%emt 0:04:16]} (31. Nxa4 Qa5 32. Bf1 Qxa4 (32... Qxd2 33. Qxd2 Rxd2 34. Bxb5 $15) (32... Rxd2 33. Qxb5 Qxb5 34. Bxb5 $15) 33. Bxb5 Rxd2 34. Qxd2 Qxb5 35. g4) 31... Rxa2 {[%emt 0:01:57]} (31... Rxd2 32. Nxa4 Qc2 (32... Rxa2 33. Qxf5 Rxa4 34. Bxe4 $11) 33. Qc5 $15 (33. Qxf5 $2 e3 $19)) 32. Qxf5 {[%emt 0:01:08]} Rdxd2 {[%emt 0:00:28] Weighted Error Value: White=0.58/Black=0.14 (very precise) .  Mistake:       	White=4     	Black=2      Inaccurate:     	White=4     	Black=2      OK:         	White=4     	Black=6      Best:        	---       	Black=2      Strong:       	---       	Black=2} 0-1

[Event "Baku Open 2024"]
[Site "Baku"]
[Date "2024.07.04"]
[Round "6.23"]
[White "Ajay Santhosh Parvathareddy"]
[Black "Vantika Agrawal"]
[Result "1-0"]
[ECO "C01"]
[WhiteElo "2163"]
[BlackElo "2390"]
[Annotator "TA"]
[PlyCount "95"]
[EventDate "2024.06.29"]
[EventType "swiss"]
[EventCountry "AZE"]
[SourceTitle "playchess.com"]
[Source "ChessBase"]
[SourceQuality "1"]
[TimeControl "5400+30"]

{[%evp 10,95,-7,-7,0,-8,-14,0,23,37,37,42,31,19,26,32,46,29,40,37,46,44,81,74,75,64,106,103,100,107,120,48,60,64,90,91,97,97,93,91,106,97,99,103,103,95,108,100,103,99,145,94,88,91,122,86,100,102,132,139,141,136,130,131,187,189,191,190,200,187,212,201,203,170,229,194,621,604,578,578,29980,29981,29988,29989,29989,29987,29987,29988]} 1. e4 {[%emt 0:00:01]} e6 {[%emt 1:31:00]} 2. d4 d5 {[%emt 0:00:00]} 3. Bd3 {[%emt 0:02:34][%cal Bf1d3,Bd3e4,Be4f3][%mdl 32]} dxe4 {[%emt 0:00:00]} 4. Bxe4 {[%emt 0:00:06]} Nf6 {[%emt 0:00:00]} 5. Bf3 {[%emt 0:01:10]} c5 {[%emt 0:00:00]} 6. Ne2 {[%emt 0:00:51]} Be7 {[%emt 0:00:00]} 7. O-O {[%emt 0:00:20]} O-O {[%emt 0:00:00]} 8. Nbc3 {[%emt 0:00:54]} a6 {[%emt 0:00:00] The position is equal.} 9. dxc5 {[%emt 0:08:51]} Bxc5 {[%emt 0:00:00]} 10. Qxd8 {[%emt 0:10:23]} Rxd8 {[%emt 0:00:00]} 11. Bg5 {[%emt 0:00:05]} Nbd7 {[%emt 0:00:00]} 12. Rad1 {[%emt 0:02:56]} Re8 {[%emt 0:00:00]} 13. Ng3 {[%emt 0:03:35]} h6 {[%emt 0:00:00]} 14. Bf4 {[%emt 0:05:10]} e5 {[%emt 0:00:00]} 15. Be3 {[%emt 0:15:24]} Bb4 {[%emt 0:00:00]} 16. Nce4 {[%emt 0:02:38]} Nxe4 {[%emt 0:00:00]} 17. Nxe4 {[%emt 0:00:23]} f5 {[%emt 0:00:00]} 18. Nd6 {[%emt 0:00:13]} Bxd6 {[%emt 0:00:00]} 19. Rxd6 {[%emt 0:00:04]} Nf6 {[%emt 0:00:00] Against Bh5} 20. Rfd1 {[%emt 0:00:53] White is much more active.} (20. Bxh6 $16 e4 21. Be2) 20... f4 $1 $14 {[%emt 0:00:00]} 21. Bb6 {[%emt 0:01:13][%cal Be3b6,Bb6d8,Bd8f6][%mdl 32]} Kf7 {[%emt 0:00:09][%cal Bg8f7,Bf7f8,Bf8e8][%mdl 32]} 22. Bd8 {[%emt 0:08:29] A strong pair of Bishops.} e4 {[%emt 0:05:17] [#]} 23. Rxf6+ $1 {[%emt 0:08:10]} gxf6 {[%emt 0:00:04]} 24. Bh5+ {[%emt 0:00:07]} Kf8 {[%emt 0:00:04][%cal Oc8g4] Hoping for ...Bg4!} 25. Bxe8 {[%emt 0:00:09]} Kxe8 {[%emt 0:00:03]} 26. Bxf6 $16 {[%emt 0:00:07][%mdl 4096] Endgame. KRB-KRB} Bf5 {[%emt 0:01:48]} 27. Bc3 {[%emt 0:02:35]} f3 {[%emt 0:01:03]} 28. Rd5 {[%emt 0:00:18]} Bg6 {[%emt 0:00:40]} 29. h4 {[%emt 0:01:12]} h5 {[%emt 0:01:23]} (29... Rd8 $142 30. Rxd8+ Kxd8) 30. Rd6 {[%emt 0:04:35]} (30. g4 $142 {Strongly threatening Rg5.} hxg4 31. Rg5 (31. Re5+ Kd7 $18)) 30... Bf7 {[%emt 0:02:05]} 31. Rb6 {[%emt 0:03:30]} fxg2 {[%emt 0:01:53]} 32. Kxg2 {[%emt 0:00:40]} Bxa2 {[%emt 0:00:27]} 33. Rxb7 {[%emt 0:00:47]} Bb1 {[%emt 0:00:30][%cal Oa8d8]} 34. Rh7 {[%emt 0:00:07] [#] aiming for Rh8+.} Rc8 {[%emt 0:00:29]} 35. Rxh5 {[%emt 0:00:29]} Bxc2 {[%emt 0:00:32]} 36. Rg5 {[%emt 0:02:46]} Rc7 {[%emt 0:00:30]} (36... Kf7 $16 {might work better.} 37. Rg7+ Ke6) 37. h5 $18 {[%emt 0:00:05]} Rc6 {[%emt 0:00:31]} 38. Kg3 {[%emt 0:00:39]} Kf7 {[%emt 0:00:12]} 39. Kf4 {[%emt 0:00:16]} Bd1 {[%emt 0:00:45]} 40. Rf5+ {[%emt 0:00:21]} Kg8 {[%emt 0:00:29]} 41. Kg5 {[%emt 0:00:08] Against Rh6} Rd6 {[%emt 0:00:34]} (41... Rb6 $142 42. Bd4 Rd6) 42. Rc5 {[%emt 0:01:33]} Bb3 $2 {[%emt 0:00:29]} (42... Ba4 43. Rc8+ Kf7) 43. Rc8+ {[%emt 0:00:05]} Kf7 {[%emt 0:00:03]} 44. Rc7+ {[%emt 0:00:06]} Kg8 {[%emt 0:00:55]} 45. h6 {[%emt 0:00:11] White mates.} Bf7 {[%emt 0:00:34]} 46. Rc8+ {[%emt 0:00:13]} Be8 {[%emt 0:00:28]} 47. Rxe8+ {[%emt 0:00:05]} Kf7 {[%emt 0:00:02]} 48. Rxe4 {[%emt 0:00:06] Weighted Error Value: White=0.07 (flawless) /Black=0.42.  Mistake:       	White=2     	Black=4      Inaccurate:     	---       	Black=4      OK:         	White=20    	Black=7      Best:        	White=1     	Black=4      Strong:       	---       	Black=1      Brilliant:      	White=1     	---} 1-0

[Event "Baku Open 2024"]
[Site "Baku"]
[Date "2024.07.04"]
[Round "6.24"]
[White "Kamalidenova, Meruert"]
[Black "Bharadia Yash"]
[Result "1-0"]
[ECO "E17"]
[WhiteElo "2360"]
[BlackElo "2100"]
[Annotator "RC"]
[PlyCount "47"]
[EventDate "2024.06.29"]
[EventType "swiss"]
[EventCountry "AZE"]
[SourceTitle "playchess.com"]
[Source "ChessBase"]
[SourceQuality "1"]
[TimeControl "5400+30"]

1. d4 {[%emt 0:00:03]} Nf6 {[%emt 0:00:02]} 2. c4 {[%emt 0:00:07]} e6 {[%emt 0:00:03]} 3. Nf3 {[%emt 0:00:15]} b6 {[%emt 0:00:22]} 4. g3 {[%emt 0:00:08]} Bb7 {[%emt 0:00:06]} 5. Bg2 {[%emt 0:00:06]} Be7 {[%emt 0:05:19]} 6. O-O {[%emt 0:00:36]} O-O {[%emt 0:00:10]} 7. d5 {[%emt 0:00:14]} exd5 {[%emt 0:00:02]} 8. Nh4 {[%emt 0:00:20]} c6 {[%emt 0:00:02]} 9. cxd5 {[%emt 0:00:14]} Nxd5 {[%emt 0:00:02]} 10. Nf5 {[%emt 0:00:09]} Nc7 {[%emt 0:00:03]} 11. e4 {[%emt 0:00:14]} d5 {[%emt 0:00:10]} 12. Nc3 {[%emt 0:00:19]} Bf6 {[%emt 0:00:22]} 13. exd5 {[%emt 0:01:12]} cxd5 {[%emt 0:00:11]} 14. Bf4 {[%emt 0:01:15]} Nba6 {[%emt 0:00:05]} 15. Re1 {[%emt 0:00:10]} Qd7 {[%emt 0:01:10]} 16. Bh3 {[%emt 0:00:10]} Ne6 {[%emt 0:11:27]} 17. Ne4 {[%emt 0:10:07]} Bd8 {[%emt 0:18:57]} 18. Be5 {[%emt 0:14:27]} Qc6 {[%emt 0:14:02]} 19. Ned6 {[%emt 0:03:29]} Kh8 {[%emt 0:24:05]} 20. Rc1 {[%emt 0:04:48]} Nac5 {[%emt 0:02:31]} 21. b4 {[%emt 0:00:40]} f6 {[%emt 0:06:06]} 22. Ba1 {[%emt 0:00:23]} Ng5 {[%emt 0:01:46]} 23. Bg2 {[%emt 0:00:14]} g6 {[%emt 0:00:06]} 24. Nxb7 {[%emt 0:01:32]} 1-0